[Event "Late-Titled-Tuesday-Blitz-February-06-2024"]
[Site "Chess.com"]
[Date "2024.02.06"]
[Round "1"]
[White "rcmz"]
[Black "Nf3c5"]
[Result "0-1"]
[WhiteElo "2145"]
[BlackElo "2571"]
[TimeControl "180+1"]
[EndTime "14:07:06 PST"]
[Termination "Nf3c5 won on time"]

1. b4 {[%clk 0:02:56.5]} 1... e5 {[%clk 0:02:57.8]} 2. Bb2 {[%clk 0:02:55.6]}
2... Bxb4 {[%clk 0:02:56.8]} 3. Bxe5 {[%clk 0:02:55.2]} 3... Nf6 {[%clk
0:02:57.4]} 4. c4 {[%clk 0:02:53.9]} 4... Nc6 {[%clk 0:02:50]} 5. Bb2 {[%clk
0:02:52.6]} 5... d5 {[%clk 0:02:43.6]} 6. cxd5 {[%clk 0:02:49.9]} 6... Qxd5
{[%clk 0:02:42.1]} 7. a3 {[%clk 0:02:48.4]} 7... Ba5 {[%clk 0:02:36.4]} 8. Nf3
{[%clk 0:02:47.9]} 8... O-O {[%clk 0:02:35.4]} 9. e3 {[%clk 0:02:47.6]} 9... Bg4
{[%clk 0:02:27.8]} 10. Be2 {[%clk 0:02:47.3]} 10... Rad8 {[%clk 0:02:28.3]} 11.
O-O {[%clk 0:02:03.8]} 11... Ne4 {[%clk 0:02:09]} 12. d4 {[%clk 0:01:49.3]}
12... Rd6 {[%clk 0:01:43.4]} 13. Nbd2 {[%clk 0:01:38.3]} 13... Rh6 {[%clk
0:00:52.5]} 14. Nxe4 {[%clk 0:01:24.5]} 14... Qxe4 {[%clk 0:00:52.4]} 15. Bd3
{[%clk 0:01:14.3]} 15... Qe7 {[%clk 0:00:47.8]} 16. Re1 {[%clk 0:00:57.1]} 16...
Qd6 {[%clk 0:00:43.8]} 17. h3 {[%clk 0:00:41.3]} 17... Bxe1 {[%clk 0:00:21.6]}
18. hxg4 {[%clk 0:00:40.6]} 18... Ba5 {[%clk 0:00:21]} 19. g5 {[%clk 0:00:29.5]}
19... Re6 {[%clk 0:00:20.7]} 20. Qb3 {[%clk 0:00:21.5]} 20... Bb6 {[%clk
0:00:20.4]} 21. Bc3 {[%clk 0:00:15.2]} 21... Ne7 {[%clk 0:00:15.1]} 22. Qc2
{[%clk 0:00:14]} 22... Ng6 {[%clk 0:00:14.1]} 23. Bxg6 {[%clk 0:00:11.6]} 23...
fxg6 {[%clk 0:00:12.7]} 24. Ne5 {[%clk 0:00:11.7]} 24... Kh8 {[%clk 0:00:11.3]}
25. f4 {[%clk 0:00:10.4]} 25... Qd5 {[%clk 0:00:11.3]} 26. Kf2 {[%clk
0:00:09.2]} 26... c5 {[%clk 0:00:11.6]} 27. Rd1 {[%clk 0:00:05.9]} 27... cxd4
{[%clk 0:00:11.5]} 28. Bxd4 {[%clk 0:00:04.7]} 28... Bxd4 {[%clk 0:00:10.5]} 29.
Rxd4 {[%clk 0:00:04.1]} 29... Qxe5 {[%clk 0:00:10.7]} 0-1

[Event "Late-Titled-Tuesday-Blitz-February-06-2024"]
[Site "Chess.com"]
[Date "2024.02.06"]
[Round "1"]
[White "Gryffindorac8"]
[Black "brm72"]
[Result "1-0"]
[WhiteElo "2366"]
[BlackElo "2650"]
[TimeControl "180+1"]
[EndTime "14:07:07 PST"]
[Termination "Gryffindorac8 won by resignation"]

1. d4 {[%clk 0:03:00.9]} 1... e6 {[%clk 0:02:59.4]} 2. c4 {[%clk 0:03:00.4]}
2... Nf6 {[%clk 0:02:59.7]} 3. Nf3 {[%clk 0:03:00.3]} 3... b6 {[%clk 0:02:58]}
4. g3 {[%clk 0:02:59.9]} 4... Bb7 {[%clk 0:02:58.6]} 5. Bg2 {[%clk 0:03:00.1]}
5... c5 {[%clk 0:02:59]} 6. d5 {[%clk 0:02:58.2]} 6... exd5 {[%clk 0:02:59.3]}
7. Nh4 {[%clk 0:02:56.3]} 7... d6 {[%clk 0:02:51.6]} 8. O-O {[%clk 0:02:55.1]}
8... Nbd7 {[%clk 0:02:51.7]} 9. Nc3 {[%clk 0:02:54.4]} 9... Be7 {[%clk
0:02:51.5]} 10. cxd5 {[%clk 0:02:38]} 10... O-O {[%clk 0:02:49.1]} 11. Nf5
{[%clk 0:02:37.9]} 11... Ne5 {[%clk 0:02:45.1]} 12. e4 {[%clk 0:02:32]} 12...
Re8 {[%clk 0:02:39.2]} 13. f4 {[%clk 0:02:24.2]} 13... Ng6 {[%clk 0:02:39.2]}
14. Qc2 {[%clk 0:02:01]} 14... Bf8 {[%clk 0:02:33.4]} 15. Bd2 {[%clk 0:01:54.1]}
15... Bc8 {[%clk 0:02:08.5]} 16. Ne3 {[%clk 0:01:39.3]} 16... h5 {[%clk
0:02:04.8]} 17. Rae1 {[%clk 0:01:37.3]} 17... h4 {[%clk 0:02:01.5]} 18. a4
{[%clk 0:01:31.4]} 18... hxg3 {[%clk 0:01:56.5]} 19. hxg3 {[%clk 0:01:31.5]}
19... a6 {[%clk 0:01:56]} 20. Qb3 {[%clk 0:01:22.6]} 20... Rb8 {[%clk
0:01:51.6]} 21. Rf2 {[%clk 0:00:53.1]} 21... b5 {[%clk 0:01:48.9]} 22. Qc2
{[%clk 0:00:46.4]} 22... b4 {[%clk 0:01:43.1]} 23. Ncd1 {[%clk 0:00:44.8]} 23...
Nh5 {[%clk 0:01:39.1]} 24. Nf1 {[%clk 0:00:39]} 24... Bd7 {[%clk 0:01:32.1]} 25.
Nde3 {[%clk 0:00:37.9]} 25... b3 {[%clk 0:01:27.7]} 26. Qc4 {[%clk 0:00:37.6]}
26... a5 {[%clk 0:01:21.5]} 27. Bc3 {[%clk 0:00:36.3]} 27... Bc8 {[%clk
0:01:17.6]} 28. e5 {[%clk 0:00:20.6]} 28... dxe5 {[%clk 0:01:15.5]} 29. f5
{[%clk 0:00:20.9]} 29... Ngf4 {[%clk 0:00:54.7]} 30. gxf4 {[%clk 0:00:18.5]}
30... exf4 {[%clk 0:00:55.6]} 31. Rxf4 {[%clk 0:00:17]} 31... Nxf4 {[%clk
0:00:56.4]} 32. Qxf4 {[%clk 0:00:17.5]} 32... Bd6 {[%clk 0:00:48.6]} 33. Qg4
{[%clk 0:00:17.8]} 33... f6 {[%clk 0:00:48.3]} 34. Re2 {[%clk 0:00:16]} 34...
Ba6 {[%clk 0:00:46]} 35. Rd2 {[%clk 0:00:14.9]} 35... Qe7 {[%clk 0:00:37.3]} 36.
Nc4 {[%clk 0:00:14.7]} 36... Bxc4 {[%clk 0:00:34.9]} 37. Qxc4 {[%clk 0:00:15.6]}
37... Qe1 {[%clk 0:00:31.2]} 38. Rd3 {[%clk 0:00:12.6]} 38... Re2 {[%clk
0:00:25.6]} 39. Bxe1 {[%clk 0:00:12.2]} 1-0

[Event "Late-Titled-Tuesday-Blitz-February-06-2024"]
[Site "Chess.com"]
[Date "2024.02.06"]
[Round "1"]
[White "zverr1"]
[Black "Alina_Gumerovna"]
[Result "1-0"]
[WhiteElo "2566"]
[BlackElo "2099"]
[TimeControl "180+1"]
[EndTime "14:07:08 PST"]
[Termination "zverr1 won on time"]

1. e4 {[%clk 0:03:00.9]} 1... e5 {[%clk 0:02:59.5]} 2. Nf3 {[%clk 0:03:00.6]}
2... Nf6 {[%clk 0:03:00]} 3. Nc3 {[%clk 0:03:00.3]} 3... Bb4 {[%clk 0:02:59.8]}
4. Nxe5 {[%clk 0:02:59.6]} 4... O-O {[%clk 0:02:59.6]} 5. Nd3 {[%clk 0:02:59.5]}
5... Bxc3 {[%clk 0:02:59.4]} 6. dxc3 {[%clk 0:03:00.4]} 6... Nxe4 {[%clk
0:03:00.3]} 7. c4 {[%clk 0:02:58.8]} 7... d5 {[%clk 0:02:52.2]} 8. cxd5 {[%clk
0:02:49.2]} 8... Qxd5 {[%clk 0:02:53.1]} 9. Be2 {[%clk 0:02:50]} 9... Nc6 {[%clk
0:02:20.3]} 10. O-O {[%clk 0:02:47.8]} 10... Bf5 {[%clk 0:01:01.4]} 11. Bf3
{[%clk 0:02:43.4]} 11... Nd4 {[%clk 0:00:38.2]} 12. c4 {[%clk 0:02:15.2]} 12...
Qxc4 {[%clk 0:00:18.7]} 13. b3 {[%clk 0:01:53.3]} 13... Qe6 {[%clk 0:00:04.1]}
14. Nf4 {[%clk 0:01:47.2]} 14... Nxf3+ {[%clk 0:00:03.3]} 15. gxf3 {[%clk
0:01:37.7]} 15... Qe5 {[%clk 0:00:02.1]} 16. fxe4 {[%clk 0:01:36.3]} 16... Qxa1
{[%clk 0:00:01.3]} 17. exf5 {[%clk 0:01:35.9]} 17... Qf6 {[%clk 0:00:01.7]} 18.
Qg4 {[%clk 0:01:31.9]} 18... Rfd8 {[%clk 0:00:01.5]} 19. Nh5 {[%clk 0:01:32.2]}
19... Qd4 {[%clk 0:00:01.1]} 20. Bf4 {[%clk 0:01:27.8]} 20... Rd7 {[%clk
0:00:01.6]} 21. Kg2 {[%clk 0:01:17.1]} 21... f6 {[%clk 0:00:02.1]} 22. Ng3
{[%clk 0:01:09.4]} 22... Re8 {[%clk 0:00:02.2]} 23. Qf3 {[%clk 0:01:04.4]} 23...
a5 {[%clk 0:00:02]} 24. Rc1 {[%clk 0:01:02.8]} 24... c6 {[%clk 0:00:01.8]} 25.
Rc4 {[%clk 0:01:02.9]} 25... Qd5 {[%clk 0:00:01.8]} 26. Rc2 {[%clk 0:00:48.5]}
26... b5 {[%clk 0:00:02.6]} 27. Rxc6 {[%clk 0:00:47.5]} 27... Qxf3+ {[%clk
0:00:01.4]} 28. Kxf3 {[%clk 0:00:47.9]} 28... Rd5 {[%clk 0:00:01.4]} 29. Rd6
{[%clk 0:00:39.9]} 29... Rc5 {[%clk 0:00:01.4]} 30. Rd7 {[%clk 0:00:33.3]} 30...
a4 {[%clk 0:00:01.6]} 31. Nh5 {[%clk 0:00:28.5]} 1-0

[Event "Late-Titled-Tuesday-Blitz-February-06-2024"]
[Site "Chess.com"]
[Date "2024.02.06"]
[Round "1"]
[White "boguszp"]
[Black "guillembaches"]
[Result "1/2-1/2"]
[WhiteElo "2109"]
[BlackElo "2556"]
[TimeControl "180+1"]
[EndTime "14:07:09 PST"]
[Termination "Game drawn by repetition"]

1. d4 {[%clk 0:03:00.1]} 1... d5 {[%clk 0:02:59.5]} 2. Bf4 {[%clk 0:03:00.3]}
2... e6 {[%clk 0:02:59.4]} 3. e3 {[%clk 0:03:00.6]} 3... Nf6 {[%clk 0:03:00]} 4.
Nd2 {[%clk 0:03:00.2]} 4... c5 {[%clk 0:03:00.4]} 5. c3 {[%clk 0:03:00.1]} 5...
Nc6 {[%clk 0:03:00.9]} 6. Bd3 {[%clk 0:02:58.4]} 6... Bd6 {[%clk 0:02:50.3]} 7.
Bg3 {[%clk 0:02:58.7]} 7... O-O {[%clk 0:02:47.7]} 8. f4 {[%clk 0:02:57.4]} 8...
Ne7 {[%clk 0:02:40.9]} 9. Ngf3 {[%clk 0:02:57.2]} 9... Nf5 {[%clk 0:02:40.5]}
10. Bf2 {[%clk 0:02:56.6]} 10... Be7 {[%clk 0:02:40.1]} 11. O-O {[%clk
0:02:52.1]} 11... b6 {[%clk 0:02:39.1]} 12. Qe2 {[%clk 0:02:49.9]} 12... Nd6
{[%clk 0:02:34.2]} 13. e4 {[%clk 0:02:40.6]} 13... dxe4 {[%clk 0:02:27]} 14.
Nxe4 {[%clk 0:02:40.1]} 14... cxd4 {[%clk 0:02:26.5]} 15. Nxd4 {[%clk
0:02:32.8]} 15... Bb7 {[%clk 0:02:20.9]} 16. Ng5 {[%clk 0:02:21.1]} 16... Qd7
{[%clk 0:02:10.5]} 17. Rad1 {[%clk 0:02:17.4]} 17... h6 {[%clk 0:02:07.1]} 18.
Ngf3 {[%clk 0:02:01.2]} 18... Rad8 {[%clk 0:01:55.8]} 19. Ne5 {[%clk 0:02:00.3]}
19... Qc7 {[%clk 0:01:56]} 20. Nxf7 {[%clk 0:01:54]} 20... Rxf7 {[%clk
0:01:49.5]} 21. Nxe6 {[%clk 0:01:53.6]} 21... Qc6 {[%clk 0:01:42]} 22. Bd4
{[%clk 0:01:44.9]} 22... Re8 {[%clk 0:01:34]} 23. Be5 {[%clk 0:01:22.3]} 23...
Bf8 {[%clk 0:01:25.1]} 24. Bxd6 {[%clk 0:01:15.4]} 24... Rxe6 {[%clk 0:01:17.4]}
25. Be5 {[%clk 0:01:08.4]} 25... Kh8 {[%clk 0:00:55]} 26. Bc4 {[%clk 0:01:01.2]}
26... Rfe7 {[%clk 0:00:54.1]} 27. Bxe6 {[%clk 0:00:58.9]} 27... Rxe6 {[%clk
0:00:53.9]} 28. Rd8 {[%clk 0:00:58.5]} 28... Re8 {[%clk 0:00:46.5]} 29. Rfd1
{[%clk 0:00:47]} 29... Bc5+ {[%clk 0:00:37.9]} 30. Kh1 {[%clk 0:00:44.5]} 30...
Kh7 {[%clk 0:00:38]} 31. Rxe8 {[%clk 0:00:38.8]} 31... Qxe8 {[%clk 0:00:33.3]}
32. Re1 {[%clk 0:00:32]} 32... Qg6 {[%clk 0:00:30.3]} 33. Bxf6 {[%clk
0:00:30.5]} 33... Qxf6 {[%clk 0:00:23.3]} 34. Qd3+ {[%clk 0:00:24.1]} 34... Kg8
{[%clk 0:00:18.7]} 35. Re8+ {[%clk 0:00:21.6]} 35... Bf8 {[%clk 0:00:17]} 36.
Qc4+ {[%clk 0:00:20.3]} 36... Kh7 {[%clk 0:00:15]} 37. Qd3+ {[%clk 0:00:17.8]}
37... Kg8 {[%clk 0:00:15.1]} 38. Qc4+ {[%clk 0:00:17.4]} 38... Kh7 {[%clk
0:00:15.4]} 39. Qd3+ {[%clk 0:00:17.1]} 39... Kg8 {[%clk 0:00:15.4]} 1/2-1/2

[Event "Late-Titled-Tuesday-Blitz-February-06-2024"]
[Site "Chess.com"]
[Date "2024.02.06"]
[Round "1"]
[White "Binary010"]
[Black "ccccvhhhj"]
[Result "1-0"]
[WhiteElo "2850"]
[BlackElo "2456"]
[TimeControl "180+1"]
[EndTime "14:07:12 PST"]
[Termination "Binary010 won on time"]

1. e4 {[%clk 0:03:00.6]} 1... e6 {[%clk 0:02:59.5]} 2. d4 {[%clk 0:03:00.5]}
2... d5 {[%clk 0:03:00.4]} 3. Nd2 {[%clk 0:02:58.2]} 3... Nc6 {[%clk 0:03:00.5]}
4. Ngf3 {[%clk 0:02:56.2]} 4... g5 {[%clk 0:03:01.1]} 5. Bb5 {[%clk 0:02:17.7]}
5... Bd7 {[%clk 0:02:59.8]} 6. exd5 {[%clk 0:02:16]} 6... exd5 {[%clk 0:03:00]}
7. O-O {[%clk 0:02:16.1]} 7... Qf6 {[%clk 0:03:00.7]} 8. Nb3 {[%clk 0:01:53.8]}
8... h6 {[%clk 0:03:00.6]} 9. Re1+ {[%clk 0:01:53.6]} 9... Nge7 {[%clk
0:03:00.8]} 10. Nc5 {[%clk 0:01:48.3]} 10... O-O-O {[%clk 0:03:01.5]} 11. Nxd7
{[%clk 0:01:46.6]} 11... Rxd7 {[%clk 0:03:02.4]} 12. Ne5 {[%clk 0:01:41]} 12...
Rd6 {[%clk 0:03:03]} 13. c3 {[%clk 0:01:29.7]} 13... Bg7 {[%clk 0:02:31.2]} 14.
a4 {[%clk 0:01:28.9]} 14... a6 {[%clk 0:02:20.6]} 15. Bd3 {[%clk 0:01:28]} 15...
Re6 {[%clk 0:02:11.2]} 16. Nxc6 {[%clk 0:00:54.4]} 16... Rxe1+ {[%clk
0:02:06.7]} 17. Qxe1 {[%clk 0:00:54.8]} 17... Nxc6 {[%clk 0:02:07.6]} 18. Bd2
{[%clk 0:00:54]} 18... Qe6 {[%clk 0:01:45.8]} 19. Qd1 {[%clk 0:00:51.5]} 19...
f5 {[%clk 0:01:03.8]} 20. b4 {[%clk 0:00:44.9]} 20... f4 {[%clk 0:01:04]} 21. b5
{[%clk 0:00:44.6]} 21... Nb8 {[%clk 0:01:04.3]} 22. Qh5 {[%clk 0:00:34.3]} 22...
Re8 {[%clk 0:00:48.1]} 23. Re1 {[%clk 0:00:31.9]} 23... Qxe1+ {[%clk 0:00:46.5]}
24. Bxe1 {[%clk 0:00:32.8]} 24... Rxe1+ {[%clk 0:00:46.8]} 25. Bf1 {[%clk
0:00:33.6]} 25... axb5 {[%clk 0:00:43.4]} 26. axb5 {[%clk 0:00:33.4]} 26... Nd7
{[%clk 0:00:36.8]} 27. Qf7 {[%clk 0:00:32.4]} 27... Bf6 {[%clk 0:00:36.9]} 28.
Qg8+ {[%clk 0:00:29.5]} 28... Bd8 {[%clk 0:00:35.6]} 29. Qxd5 {[%clk 0:00:29.6]}
29... Nb6 {[%clk 0:00:34.6]} 30. Qf5+ {[%clk 0:00:29.8]} 30... Kb8 {[%clk
0:00:34.8]} 31. g3 {[%clk 0:00:26.9]} 31... Nc4 {[%clk 0:00:28.3]} 32. Qf8
{[%clk 0:00:22]} 32... Kc8 {[%clk 0:00:28.2]} 33. Kg2 {[%clk 0:00:21.7]} 33...
Nd2 {[%clk 0:00:18.7]} 34. Bd3 {[%clk 0:00:21.5]} 34... f3+ {[%clk 0:00:18.9]}
35. Kh3 {[%clk 0:00:21.7]} 35... Ne4 {[%clk 0:00:06]} 36. Bxe4 {[%clk
0:00:20.8]} 36... Rxe4 {[%clk 0:00:06.9]} 37. Qf5+ {[%clk 0:00:20.9]} 37... Kb8
{[%clk 0:00:06.4]} 38. Qxe4 {[%clk 0:00:21.1]} 1-0

[Event "Late-Titled-Tuesday-Blitz-February-06-2024"]
[Site "Chess.com"]
[Date "2024.02.06"]
[Round "1"]
[White "IraZyne"]
[Black "Mazetovic"]
[Result "1-0"]
[WhiteElo "2329"]
[BlackElo "2617"]
[TimeControl "180+1"]
[EndTime "14:07:13 PST"]
[Termination "IraZyne won by resignation"]

1. e4 {[%clk 0:03:00.1]} 1... c5 {[%clk 0:02:56.2]} 2. Nc3 {[%clk 0:02:59.3]}
2... Nc6 {[%clk 0:02:55.9]} 3. g3 {[%clk 0:02:59.5]} 3... h5 {[%clk 0:02:54.9]}
4. h3 {[%clk 0:02:58.9]} 4... g6 {[%clk 0:02:54.1]} 5. Bg2 {[%clk 0:02:58.7]}
5... Bg7 {[%clk 0:02:54.7]} 6. d3 {[%clk 0:02:56.4]} 6... d6 {[%clk 0:02:54.6]}
7. Nge2 {[%clk 0:02:54.1]} 7... Rb8 {[%clk 0:02:45.4]} 8. Be3 {[%clk 0:02:53.7]}
8... b5 {[%clk 0:02:42.7]} 9. Qd2 {[%clk 0:02:53.5]} 9... b4 {[%clk 0:02:40.4]}
10. Nd1 {[%clk 0:02:53.4]} 10... a5 {[%clk 0:02:32.6]} 11. O-O {[%clk
0:02:52.2]} 11... Nf6 {[%clk 0:02:11.2]} 12. f4 {[%clk 0:02:47.2]} 12... h4
{[%clk 0:02:08.6]} 13. g4 {[%clk 0:02:46.5]} 13... Qb6 {[%clk 0:01:13.9]} 14. f5
{[%clk 0:02:44.5]} 14... Ba6 {[%clk 0:00:59.8]} 15. Nf4 {[%clk 0:02:35.5]} 15...
gxf5 {[%clk 0:00:42.1]} 16. exf5 {[%clk 0:02:33.7]} 16... Nd7 {[%clk 0:00:40.2]}
17. Nd5 {[%clk 0:02:29.4]} 17... Qd8 {[%clk 0:00:27.5]} 18. Qe2 {[%clk
0:02:22.9]} 18... Nd4 {[%clk 0:00:25.1]} 19. Qf2 {[%clk 0:02:19.6]} 19... Ne5
{[%clk 0:00:23.1]} 20. Kh1 {[%clk 0:02:03.7]} 20... e6 {[%clk 0:00:16.4]} 21.
fxe6 {[%clk 0:02:00.2]} 21... fxe6 {[%clk 0:00:15.6]} 22. Nf4 {[%clk 0:02:00.1]}
22... Rf8 {[%clk 0:00:13.2]} 23. Qd2 {[%clk 0:01:33.2]} 23... Kd7 {[%clk
0:00:10.9]} 24. Nf2 {[%clk 0:01:31.2]} 24... Ndf3 {[%clk 0:00:09.7]} 25. Qe2
{[%clk 0:01:26.3]} 25... Bb7 {[%clk 0:00:09.3]} 26. Ne4 {[%clk 0:01:24.3]} 26...
Bxe4 {[%clk 0:00:08.7]} 27. dxe4 {[%clk 0:01:24]} 27... Nd4 {[%clk 0:00:07.8]}
28. Qd2 {[%clk 0:01:19.6]} 28... Qb6 {[%clk 0:00:04.3]} 29. b3 {[%clk
0:01:17.5]} 29... Nb5 {[%clk 0:00:03.2]} 30. Rad1 {[%clk 0:01:15.4]} 30... Nd4
{[%clk 0:00:03.4]} 31. Nd3 {[%clk 0:00:55.5]} 31... Nxd3 {[%clk 0:00:02.5]} 32.
Qxd3 {[%clk 0:00:52.3]} 32... Be5 {[%clk 0:00:03]} 33. Bg5 {[%clk 0:00:48]}
33... Kc6 {[%clk 0:00:03]} 34. Bxh4 {[%clk 0:00:47.7]} 34... Rh8 {[%clk
0:00:02.5]} 35. Bg3 {[%clk 0:00:47.7]} 35... Bxg3 {[%clk 0:00:01.5]} 36. Qxg3
{[%clk 0:00:46.6]} 36... e5 {[%clk 0:00:02.4]} 37. Rf6 {[%clk 0:00:42.9]} 37...
Qc7 {[%clk 0:00:02.8]} 38. Rdf1 {[%clk 0:00:41.7]} 38... Qe7 {[%clk 0:00:03.4]}
39. Qd3 {[%clk 0:00:40.5]} 39... Qh7 {[%clk 0:00:03.2]} 40. Qa6+ {[%clk
0:00:38.3]} 40... Rb6 {[%clk 0:00:03.4]} 41. Rxd6+ {[%clk 0:00:37]} 41... Kxd6
{[%clk 0:00:03.4]} 42. Qxb6+ {[%clk 0:00:37.1]} 42... Nc6 {[%clk 0:00:03.8]} 43.
Rd1+ {[%clk 0:00:34.9]} 43... Ke7 {[%clk 0:00:04.2]} 44. Qxc6 {[%clk 0:00:33.9]}
1-0

[Event "Late-Titled-Tuesday-Blitz-February-06-2024"]
[Site "Chess.com"]
[Date "2024.02.06"]
[Round "1"]
[White "dedpihto_v_kozhanom_palto"]
[Black "KorolDimitriy75"]
[Result "1-0"]
[WhiteElo "2683"]
[BlackElo "2372"]
[TimeControl "180+1"]
[EndTime "14:07:17 PST"]
[Termination "dedpihto_v_kozhanom_palto won on time"]

1. c4 {[%clk 0:03:00.9]} 1... c5 {[%clk 0:02:59.7]} 2. Nc3 {[%clk 0:03:00.8]}
2... g6 {[%clk 0:03:00.3]} 3. e3 {[%clk 0:03:01.5]} 3... Bg7 {[%clk 0:03:00.9]}
4. d4 {[%clk 0:03:02.3]} 4... Nf6 {[%clk 0:03:01.3]} 5. Nf3 {[%clk 0:03:02.4]}
5... cxd4 {[%clk 0:03:01.5]} 6. exd4 {[%clk 0:03:02.6]} 6... d5 {[%clk
0:03:01.5]} 7. cxd5 {[%clk 0:03:02.5]} 7... Nxd5 {[%clk 0:03:02.4]} 8. Be2
{[%clk 0:03:03.2]} 8... O-O {[%clk 0:03:02.1]} 9. O-O {[%clk 0:03:03.8]} 9...
Nc6 {[%clk 0:03:02]} 10. Be3 {[%clk 0:03:03.3]} 10... b6 {[%clk 0:03:00.3]} 11.
Rc1 {[%clk 0:03:02.9]} 11... Bb7 {[%clk 0:02:58.8]} 12. Re1 {[%clk 0:03:00.5]}
12... Rc8 {[%clk 0:02:53]} 13. Qd2 {[%clk 0:03:00.4]} 13... Nxe3 {[%clk
0:02:25.6]} 14. fxe3 {[%clk 0:02:59.7]} 14... e6 {[%clk 0:02:26.5]} 15. Red1
{[%clk 0:02:58.8]} 15... Qe7 {[%clk 0:02:17]} 16. Ne1 {[%clk 0:02:57.7]} 16...
Rfd8 {[%clk 0:02:16.2]} 17. Bf3 {[%clk 0:02:54.4]} 17... Na5 {[%clk 0:02:04]}
18. Qf2 {[%clk 0:02:54.3]} 18... h6 {[%clk 0:01:31.7]} 19. b3 {[%clk 0:02:38.9]}
19... Bxf3 {[%clk 0:01:02]} 20. Nxf3 {[%clk 0:02:39.8]} 20... Qb4 {[%clk
0:00:56.6]} 21. Ne4 {[%clk 0:02:36.4]} 21... Qa3 {[%clk 0:00:53.6]} 22. Rxc8
{[%clk 0:02:33.8]} 22... Rxc8 {[%clk 0:00:54.5]} 23. Ne5 {[%clk 0:02:33.2]}
23... Qe7 {[%clk 0:00:51.3]} 24. Qxf7+ {[%clk 0:02:26.1]} 24... Qxf7 {[%clk
0:00:49.3]} 25. Nxf7 {[%clk 0:02:27]} 25... Rc2 {[%clk 0:00:48.2]} 26. Nd8
{[%clk 0:02:23.6]} 26... Rxa2 {[%clk 0:00:38.9]} 27. Nxe6 {[%clk 0:02:18.4]}
27... Re2 {[%clk 0:00:27.8]} 28. Rd3 {[%clk 0:02:07.7]} 28... Bf8 {[%clk
0:00:10.2]} 29. d5 {[%clk 0:02:01]} 29... Nb7 {[%clk 0:00:08]} 30. d6 {[%clk
0:01:51.6]} 30... Nxd6 {[%clk 0:00:04.4]} 31. Nxd6 {[%clk 0:01:51.4]} 31... Bxd6
{[%clk 0:00:05.3]} 32. Kf1 {[%clk 0:01:47.8]} 32... Rb2 {[%clk 0:00:03.2]} 33.
Rxd6 {[%clk 0:01:48]} 33... Rxb3 {[%clk 0:00:03.5]} 34. Kf2 {[%clk 0:01:47.5]}
34... a5 {[%clk 0:00:03.1]} 35. Rd8+ {[%clk 0:01:36.9]} 35... Kf7 {[%clk
0:00:02.8]} 36. Nd4 {[%clk 0:01:37.8]} 36... Rb2+ {[%clk 0:00:03]} 37. Kf3
{[%clk 0:01:38.3]} 37... a4 {[%clk 0:00:03.9]} 38. Ra8 {[%clk 0:01:37.4]} 38...
b5 {[%clk 0:00:04.8]} 39. Ra5 {[%clk 0:01:36.9]} 39... Kf6 {[%clk 0:00:03.8]}
40. Nxb5 {[%clk 0:01:36.2]} 40... Ke5 {[%clk 0:00:04.7]} 41. Nd4+ {[%clk
0:01:33.6]} 41... Kd6 {[%clk 0:00:02.1]} 42. Rxa4 {[%clk 0:01:33.5]} 42... Kc5
{[%clk 0:00:03]} 43. Ra5+ {[%clk 0:01:33.2]} 43... Kc4 {[%clk 0:00:03]} 44. Ra6
{[%clk 0:01:32.7]} 44... Kd3 {[%clk 0:00:03.2]} 45. Rxg6 {[%clk 0:01:33]} 45...
Rb1 {[%clk 0:00:02.8]} 46. Rxh6 {[%clk 0:01:30.5]} 46... Rf1+ {[%clk 0:00:02.8]}
47. Kg3 {[%clk 0:01:31.2]} 47... Kxe3 {[%clk 0:00:03.4]} 48. Nf3 {[%clk
0:01:31.3]} 48... Ra1 {[%clk 0:00:03]} 49. Re6+ {[%clk 0:01:31.8]} 49... Kd3
{[%clk 0:00:02.6]} 50. h4 {[%clk 0:01:32]} 50... Ra8 {[%clk 0:00:02.8]} 51. h5
{[%clk 0:01:32.1]} 51... Rg8+ {[%clk 0:00:03.3]} 52. Kh3 {[%clk 0:01:29.3]}
52... Rh8 {[%clk 0:00:03.7]} 53. h6 {[%clk 0:01:29.6]} 53... Kc4 {[%clk
0:00:04.1]} 54. g4 {[%clk 0:01:27.1]} 54... Kd5 {[%clk 0:00:05]} 55. Rf6 {[%clk
0:01:27.4]} 55... Ke4 {[%clk 0:00:05.1]} 56. Kg3 {[%clk 0:01:26.6]} 56... Kd5
{[%clk 0:00:05.2]} 57. g5 {[%clk 0:01:27]} 57... Ke4 {[%clk 0:00:05.5]} 58. Kg4
{[%clk 0:01:27.3]} 58... Kd5 {[%clk 0:00:05.7]} 59. Nh4 {[%clk 0:01:27.6]} 59...
Ke4 {[%clk 0:00:05.3]} 60. Ng6 {[%clk 0:01:26.9]} 60... Rh7 {[%clk 0:00:05.7]}
61. Re6+ {[%clk 0:01:24.5]} 61... Kd5 {[%clk 0:00:05.6]} 62. Re7 {[%clk
0:01:25.2]} 62... Rxe7 {[%clk 0:00:04.2]} 63. Nxe7+ {[%clk 0:01:26.1]} 63... Ke6
{[%clk 0:00:04.8]} 64. h7 {[%clk 0:01:26.3]} 64... Kf7 {[%clk 0:00:05.7]} 65.
h8=Q {[%clk 0:01:25.7]} 65... Ke6 {[%clk 0:00:05.9]} 66. Qf6+ {[%clk 0:01:26]}
66... Kd7 {[%clk 0:00:06.1]} 67. Nd5 {[%clk 0:01:25.7]} 1-0